bitfinex-derivatives/quotes_SOLF0:USTF0_20260114
["timestamp","ask_amount","ask_price","bid_price","bid_amount"]
[1768404209520,0.04494881,146.87,146.78,3.12133768]
[1768404209725,0.04494881,146.87,146.78,9.25393768]
[1768404209929,0.04494881,146.87,146.79,3.12133768]
[1768404210125,9.25416368,146.89,146.79,3.12133768]
[1768404210327,95.3187,146.91,146.8,3.12133768]
[1768404210328,6.1276,146.91,146.8,3.12133768]
[1768404210830,8.42197,146.92,146.8,3.12133768]
[1768404211030,6.1279,146.9,146.8,9.25323768]
[1768404212323,9.25286368,146.92,146.82,3.12133768]
[1768404212527,3.12566368,146.92,146.83,83.52133768]
[1768404213024,3.12566368,146.92,146.83,80.4]
[1768404213928,6.1279,146.9,146.83,80.4]
[1768404215434,6.1284,146.89,146.83,80.4]
[1768404216129,6.1287,146.88,146.83,80.4]
[1768404216329,3.12566368,146.88,146.77,83.52133768]
[1768404216841,6.1292,146.87,146.78,3.12133768]
[1768404217044,3.12566368,146.89,146.78,3.12133768]
[1768404217539,0.04486214,146.84,146.78,3.12133768]
[1768404217941,3.12566368,146.92,146.78,3.12133768]
[1768404218243,3.12566368,146.92,146.8,3.17131869]
[1768404218439,9.25276368,146.92,146.81,3.12133768]
[1768404218637,3.12566368,146.92,146.81,3.12133768]
[1768404219340,3.12566368,146.92,146.85,0.0497642]
[1768404219938,9.25276368,146.92,146.85,0.0497642]
[1768404220137,3.12566368,146.92,146.85,0.0497642]
[1768404220641,98.43536368,146.92,146.85,0.0497642]
[1768404220839,3.12566368,146.91,146.82,80.42]
[1768404221145,0.04921416,146.9,146.82,80.42]
[1768404221837,6.1285,146.89,146.82,80.42]
[1768404222038,0.04921416,146.9,146.83,3.12133768]
[1768404222338,6.1279,146.9,146.83,3.12133768]
[1768404222538,3.12566368,146.92,146.82,80.42]
[1768404222738,0.04465295,146.88,146.82,80.42]
[1768404225544,0.04465295,146.88,146.8,3.12133768]
[1768404225742,6.1295,146.86,146.8,3.12133768]
[1768404226340,98.45106368,146.9,146.8,3.12133768]
[1768404226341,6.129,146.88,146.8,3.12133768]
[1768404226745,6.129,146.88,146.82,0.04301919]
[1768404226943,6.129,146.88,146.78,80.42]
[1768404226944,3.12566368,146.86,146.78,80.42]
[1768404227135,95.3301,146.89,146.78,83.54133768]
[1768404227340,3.12566368,146.89,146.78,83.54133768]
[1768404228043,6.1298,146.86,146.79,3.12133768]
[1768404228649,3.12566368,146.89,146.79,3.12133768]
[1768404228650,6.13,146.85,146.79,3.12133768]
[1768404228839,98.45806368,146.89,146.7,115.877]
[1768404228840,98.47476368,146.86,146.76,3.12133768]
[1768404229040,98.47476368,146.86,146.76,83.54133768]
[1768404229649,95.3477,146.87,146.77,3.12133768]
[1768404230247,0.04718586,146.82,146.77,3.12133768]
[1768404232045,3.12566368,146.89,146.77,3.12133768]
[1768404232246,6.1296,146.86,146.78,3.15618985]
[1768404232649,3.12566368,146.89,146.78,3.1097882]
[1768404233045,6.1292,146.87,146.78,3.1097882]
[1768404233558,6.1292,146.87,146.82,0.04922691]
[1768404235655,6.1285,146.89,146.82,0.04922691]
[1768404235955,98.57170053,146.91,146.82,0.04922691]
[1768404236150,3.25510053,146.9,146.82,0.04922691]
[1768404236657,3.25510053,146.9,146.8,3.1097882]
[1768404236858,3.25510053,146.9,146.85,0.05015589]
[1768404237264,3.25510053,146.9,146.8,3.1097882]
[1768404237265,6.1287,146.88,146.8,3.1097882]
[1768404237449,0.04449539,146.89,146.8,3.1097882]
[1768404237853,3.25510053,146.93,146.8,3.1097882]
[1768404238362,3.25510053,146.93,146.84,3.1097882]
[1768404238750,0.05054825,146.88,146.84,3.1097882]
[1768404241361,3.25510053,146.96,146.86,3.1097882]
[1768404241863,3.25510053,146.95,146.86,3.1097882]
[1768404242661,3.25510053,146.95,146.89,0.04804767]
[1768404242862,6.1267,146.93,146.89,0.04804767]
[1768404245364,9.38110053,146.95,146.89,0.04804767]
[1768404245567,6.126,146.95,146.89,0.04804767]
[1768404247566,9.38020053,146.97,146.89,0.04804767]
[1768404247764,9.38020053,146.97,146.89,3.15783587]
[1768404248066,3.25510053,146.95,146.86,3.1097882]
[1768404248858,6.1266,146.93,146.86,3.1097882]
[1768404250355,9.38120053,146.95,146.86,3.1097882]
[1768404250757,3.25510053,146.98,146.86,3.1097882]
[1768404250964,3.25510053,146.98,146.9,6.1277]
[1768404251169,3.25510053,147.01,146.9,3.1097882]
[1768404251559,3.25510053,147.01,146.91,83.5097882]
[1768404251756,3.25510053,147.01,146.92,3.1097882]
[1768404252172,9.37840053,147.01,146.92,9.2365882]
[1768404252470,3.25510053,147.01,146.92,3.1097882]
[1768404253466,3.25510053,147.01,146.91,80.4]
[1768404254371,3.25510053,146.99,146.91,80.4]
[1768404255070,6.1252,146.97,146.91,80.4]
[1768404255272,3.25510053,146.99,146.91,80.4]
[1768404255770,3.25510053,146.98,146.89,3.1097882]
[1768404255972,3.25510053,146.98,146.87,83.5097882]
[1768404256372,6.1262,146.94,146.87,83.5097882]
[1768404256964,6.1256,146.96,146.87,83.5097882]
[1768404257473,3.25510053,146.98,146.88,3.1097882]
[1768404257771,9.37990053,146.98,146.89,3.1097882]
[1768404258479,6.125,146.97,146.89,3.1097882]
[1768404259767,95.2618,147.0,146.89,3.1097882]
[1768404259768,6.1244,146.99,146.9,3.1097882]
[1768404261371,3.25510053,147.01,146.9,3.1097882]
[1768404261766,6.1235,147.01,146.92,3.01104316]
[1768404261965,6.1235,147.01,146.88,95.3313]
[1768404261966,6.1235,147.01,146.93,83.39104316]
[1768404262471,6.1227,147.03,146.94,3.01104316]
[1768404262860,6.1229,147.02,146.94,3.01104316]
[1768404263180,0.04393231,147.0,146.94,3.01104316]
[1768404263873,0.04393231,147.0,146.96,0.05086263]
[1768404268167,3.19874237,147.0,146.87,3.01104316]
[1768404268382,3.15481006,146.99,146.87,3.01104316]
[1768404268574,3.15481006,146.98,146.87,3.01104316]
[1768404268782,6.1252,146.97,146.87,3.01104316]
[1768404268983,3.15481006,146.98,146.87,3.01104316]
[1768404269274,6.1258,146.95,146.87,3.01104316]
[1768404269781,0.04593635,146.94,146.87,3.01104316]
[1768404271581,3.15481006,146.93,146.86,80.36]
[1768404271968,0.04593635,146.94,146.87,3.01104316]
[1768404272167,95.2459,147.02,146.87,3.01104316]
[1768404272168,3.15481006,147.03,146.89,3.01104316]
[1768404272579,6.1229,147.02,146.93,3.01104316]
[1768404272772,6.1229,147.02,146.93,83.39104316]
[1768404273172,3.15481006,147.02,146.93,83.39104316]
[1768404273478,3.15481006,147.02,146.92,80.38]
[1768404274374,0.05005236,146.98,146.92,80.38]
[1768404274975,0.05005236,146.98,146.88,80.38]
[1768404274976,3.20486242,146.98,146.88,80.38]
[1768404275184,3.20486242,146.98,146.88,83.39104316]
[1768404275688,3.15481006,146.98,146.88,83.39104316]
[1768404275877,0.04651618,146.94,146.89,3.01104316]
[1768404279882,3.15481006,147.01,146.9,3.05758182]
[1768404280283,80.36,147.04,146.91,3.01104316]
[1768404280284,83.51481006,147.04,146.91,3.01104316]
[1768404280677,3.15481006,147.04,146.91,3.01104316]
[1768404280873,6.1229,147.02,146.94,3.01104316]
[1768404281077,3.15481006,147.04,146.96,0.04860364]
[1768404281278,3.15481006,147.04,146.96,3.0596468]
[1768404281474,3.15481006,147.07,146.96,3.0596468]
[1768404281883,3.15481006,147.07,146.97,3.01104316]
[1768404281884,9.27571006,147.07,146.97,3.01104316]
[1768404282281,3.15481006,147.07,146.97,3.01104316]
[1768404282576,3.15481006,147.03,146.95,80.38]
[1768404282772,3.20027383,147.03,146.95,80.38]
[1768404283186,6.123,147.02,146.95,80.38]
[1768404283386,0.04546377,147.03,146.95,83.39104316]
[1768404283582,0.04546377,147.03,146.96,3.01104316]
[1768404283782,6.1225,147.03,146.96,3.01104316]
[1768404283986,3.15481006,147.05,146.95,80.38]
[1768404284182,0.04376597,147.01,146.95,80.38]
[1768404284781,0.04376597,147.01,146.95,83.39104316]
[1768404286389,6.1209,147.07,146.97,9.13574316]
[1768404286590,3.15481006,147.08,146.98,3.01104316]
[1768404287684,3.15481006,147.08,147.02,0.04880841]
[1768404288281,3.15481006,147.08,146.98,3.01104316]
[1768404288481,0.04780787,147.06,146.98,3.01104316]
[1768404288682,6.16910787,147.06,146.98,3.01104316]
[1768404288988,6.16910787,147.06,146.95,83.37104316]
[1768404288989,3.15481006,147.05,146.95,83.37104316]
[1768404289291,3.15481006,147.03,146.95,83.37104316]
[1768404289985,0.05015978,147.0,146.95,83.37104316]
[1768404291292,0.05015978,147.0,146.95,80.36]
[1768404292591,6.1219,147.05,146.96,3.23574618]
[1768404292787,3.00912015,147.07,146.96,3.23574618]
[1768404292986,3.00912015,147.07,146.96,3.28482833]
[1768404293388,3.00912015,147.05,146.95,80.36]
[1768404293786,3.00912015,147.05,146.99,0.04789458]
[1768404294494,3.00912015,147.1,147.0,83.59574618]
[1768404294898,98.21462015,147.08,147.0,80.36]
[1768404295093,3.00912015,147.07,146.97,3.23574618]
[1768404295499,0.04831709,147.05,146.97,3.23574618]
[1768404298296,6.122,147.04,146.97,3.23574618]
[1768404298897,3.00912015,147.07,146.97,3.23574618]
[1768404299195,0.05067574,147.02,146.97,3.23574618]
[1768404300990,3.00912015,147.07,146.97,3.23574618]
[1768404301193,3.00912015,147.07,146.98,3.28193168]
[1768404301699,3.00912015,147.07,146.98,3.23574618]
[1768404302088,6.1224,147.03,146.98,3.23574618]
[1768404302696,6.1224,147.03,146.96,80.36]
[1768404303197,6.1224,147.03,146.96,83.59574618]
[1768404303700,98.22462015,147.07,146.96,83.59574618]
[1768404303897,0.04375739,147.01,146.96,83.59574618]
[1768404304197,98.22462015,147.07,147.0,0.04401384]
[1768404304703,98.22462015,147.07,146.97,3.23574618]
[1768404305002,292.1831,147.21,146.96,80.36]
[1768404305003,3.00912015,147.11,147.01,3.23574618]
[1768404305297,3.00912015,147.11,147.02,3.23574618]
[1768404305298,6.1195,147.1,147.02,3.23574618]
[1768404305598,3.00912015,147.11,147.05,0.04766667]
[1768404306194,3.00912015,147.09,147.01,80.34]
[1768404306388,3.05667132,147.09,147.01,80.34]
[1768404307201,9.17687132,147.09,147.01,80.34]
[1768404308394,98.25937132,147.09,146.99,3.23574618]
[1768404308595,3.00912015,147.08,146.99,3.23574618]
[1768404308899,3.00912015,147.07,146.97,80.34]
[1768404309096,3.00912015,147.07,146.97,83.57574618]
[1768404309298,0.04349957,147.05,146.97,83.57574618]
[1768404309497,0.04349957,147.05,146.98,3.23574618]
[1768404310408,0.04349957,147.05,147.0,3.23574618]
[1768404310705,3.00912015,147.1,147.01,3.23574618]
[1768404311004,3.00912015,147.12,147.01,3.23574618]
[1768404311403,6.1198,147.1,147.01,3.23574618]
[1768404312310,6.1198,147.1,147.04,0.0448179]
[1768404312508,98.19352015,147.12,147.04,0.0448179]
[1768404312808,98.19352015,147.12,147.01,3.23574618]
[1768404312809,3.00912015,147.11,147.01,3.23574618]
[1768404313109,3.00912015,147.07,146.98,3.23574618]
[1768404313509,8.29596141,147.1,146.98,3.23574618]
[1768404313811,3.00912015,147.1,147.01,3.23574618]
[1768404314010,0.05129383,147.05,147.01,3.23574618]
[1768404314308,3.00912015,147.1,147.01,3.23574618]
[1768404314503,14.41446141,147.13,147.04,0.04465665]
[1768404314700,3.00912015,147.15,147.04,3.28040283]
[1768404315014,3.00912015,147.15,147.04,3.23574618]
[1768404315570,3.00912015,147.12,147.03,80.32]
[1768404316112,3.00912015,147.15,147.04,3.23574618]
[1768404317114,9.12682015,147.15,147.05,9.35724618]
[1768404317406,3.00912015,147.15,147.06,3.23574618]
[1768404317606,6.117,147.16,147.06,9.35674618]
[1768404317907,0.0443121,147.11,147.06,9.35674618]
[1768404318109,6.117,147.16,147.07,3.23574618]
[1768404318314,6.117,147.16,147.1,0.04878275]
[1768404319114,3.00912015,147.18,147.1,0.04878275]
[1768404319811,3.00912015,147.21,147.1,3.28452893]
[1768404320310,3.00912015,147.21,147.1,3.23574618]
[1768404320808,3.00912015,147.21,147.14,0.04598984]
[1768404321115,5.28684126,147.23,147.14,0.04598984]
[1768404321407,2.98656468,147.22,147.14,0.04598984]
[1768404321609,2.98656468,147.22,147.11,2.99172432]
[1768404322106,2.98656468,147.22,147.17,0.05093142]
[1768404323309,2.98656468,147.22,147.11,9.11052432]
[1768404323510,0.04314691,147.21,147.11,9.11052432]
[1768404323801,3.02971159,147.21,147.11,9.11052432]
[1768404324009,2.98656468,147.21,147.11,9.11052432]
[1768404324805,0.04880222,147.17,147.11,9.11052432]
[1768404325113,0.04880222,147.17,147.12,6.1184]
[1768404326716,0.04880222,147.17,147.13,6.1181]
[1768404326907,11.40114126,147.23,147.13,9.15290525]
[1768404327124,2.98656468,147.26,147.14,2.99172432]
[1768404327311,2.98656468,147.26,147.17,98.13422432]
[1768404327514,2.98656468,147.3,147.19,2.99172432]
[1768404327814,2.98656468,147.3,147.22,2.99172432]
[1768404328113,2.98656468,147.3,147.18,2.99172432]
[1768404328316,2.98656468,147.3,147.23,0.05204126]
[1768404329020,2.98656468,147.29,147.18,2.99172432]
[1768404329218,3.03401978,147.28,147.18,2.99172432]
[1768404329413,2.98656468,147.28,147.18,2.99172432]
[1768404329618,2.98656468,147.28,147.19,6.1156]
[1768404329918,2.98656468,147.28,147.15,83.27172432]
[1768404330210,5.28684126,147.3,147.15,83.27172432]
[1768404330211,2.98656468,147.26,147.15,83.27172432]
[1768404330617,0.04814426,147.23,147.17,6.1163]
[1768404331618,0.04814426,147.23,147.15,89.38892432]
[1768404331812,0.04814426,147.23,147.13,95.1693]
[1768404331813,3.03470894,147.23,147.12,2.99172432]
[1768404332025,9.10126468,147.22,147.13,6.1181]
[1768404332226,2.98656468,147.22,147.13,6.1181]
[1768404332917,2.98656468,147.22,147.12,2.99172432]
[1768404332918,0.04793753,147.19,147.14,6.1177]
[1768404333122,5.28684126,147.24,147.14,2.99172432]
[1768404333323,14.38720594,147.24,147.16,6.16226718]
[1768404334621,2.98656468,147.27,147.16,178.4473915]
[1768404335227,2.98656468,147.27,147.16,178.40192432]
[1768404335525,2.98656468,147.27,147.2,0.04517448]
[1768404335823,2.98656468,147.27,147.16,178.40192432]
[1768404335824,2.98656468,147.25,147.17,6.1162]
[1768404336026,2.98656468,147.25,147.16,83.25172432]
[1768404336222,3.03230557,147.25,147.13,98.16042432]
[1768404336523,5.28684126,147.26,147.16,2.99172432]
[1768404336913,2.98656468,147.25,147.16,2.99172432]
[1768404337121,2.98656468,147.25,147.13,178.42042432]
[1768404337320,0.04817435,147.22,147.13,178.42042432]
[1768404337529,0.04817435,147.22,147.16,6.1168]
[1768404338027,9.10036468,147.24,147.16,6.1168]
[1768404338320,5.28684126,147.3,147.18,98.12972432]
[1768404338522,5.28684126,147.3,147.21,2.99172432]
[1768404338822,6.1104,147.32,147.24,6.1134]
[1768404339023,95.0234,147.37,147.21,2.99172432]
[1768404339220,5.28684126,147.33,147.21,2.99172432]
[1768404340127,0.04828683,147.28,147.21,2.99172432]
[1768404343731,8.27340594,147.33,147.21,2.99172432]
[1768404343932,9.09656468,147.33,147.23,3.03639947]
[1768404344123,5.28684126,147.34,147.23,3.03639947]
[1768404344520,8.27340594,147.36,147.23,2.99172432]
[1768404344925,6.1097,147.34,147.27,0.04760337]
[1768404345429,6.1097,147.34,147.23,2.99172432]
[1768404345430,6.1102,147.33,147.23,2.99172432]
[1768404345635,2.98656468,147.32,147.23,2.99172432]
[1768404346135,0.04960531,147.29,147.23,2.99172432]
[1768404346731,0.04960531,147.29,147.2,2.99172432]
[1768404346932,2.98656468,147.36,147.21,2.99172432]
[1768404347132,2.98656468,147.36,147.22,2.99172432]
[1768404347333,2.98656468,147.36,147.24,2.99172432]
[1768404348029,2.98656468,147.36,147.25,2.99172432]
[1768404348425,2.98656468,147.36,147.29,0.0523683]
[1768404348938,0.04851392,147.32,147.21,2.99172432]
[1768404349531,2.98656468,147.34,147.21,2.99172432]
[1768404349731,2.98656468,147.34,147.23,2.99172432]
[1768404350141,0.04993677,147.29,147.23,2.99172432]
[1768404350337,2.98656468,147.34,147.24,2.99172432]
[1768404350536,2.98656468,147.34,147.27,0.04330822]
[1768404350838,20.43,147.4,147.3,3.12159086]
[1768404350839,3.10158317,147.4,147.3,3.12159086]
[1768404352735,3.10158317,147.39,147.26,3.12159086]
[1768404353036,5.28684126,147.41,147.3,3.12159086]
[1768404353443,5.28684126,147.41,147.31,9.27656567]
[1768404353627,3.10158317,147.41,147.31,3.16616567]
[1768404353939,3.10158317,147.41,147.31,3.12159086]
[1768404354139,3.10158317,147.46,147.33,3.12159086]
[1768404354338,3.10158317,147.45,147.33,3.12159086]
[1768404354649,3.10158317,147.44,147.33,3.12159086]
[1768404354851,3.10158317,147.44,147.38,0.04581709]
[1768404355136,0.04385214,147.4,147.33,3.12159086]
[1768404355842,0.04385214,147.4,147.28,100.35974126]
[1768404355843,0.04385214,147.4,147.29,9.23299086]
[1768404356042,0.04385214,147.4,147.29,3.12159086]
[1768404356238,0.04385214,147.4,147.29,98.18759086]
[1768404356440,3.10158317,147.42,147.3,3.12159086]
[1768404356750,0.04541697,147.36,147.3,3.12159086]
[1768404357638,0.04541697,147.36,147.32,6.1101]
[1768404357834,0.04541697,147.36,147.3,3.12159086]
[1768404358033,0.04541697,147.36,147.3,9.23259086]
[1768404358234,0.04541697,147.36,147.27,3.12159086]
[1768404358645,3.10158317,147.38,147.27,3.12159086]
[1768404359147,0.04599525,147.33,147.27,3.12159086]
[1768404359747,0.04599525,147.33,147.27,9.23379086]
[1768404360842,0.04599525,147.33,147.27,3.12159086]
[1768404361041,0.04599525,147.33,147.23,3.12159086]
[1768404361248,3.14757842,147.33,147.23,3.12159086]
[1768404361443,3.10158317,147.33,147.23,3.12159086]
[1768404361649,3.10158317,147.32,147.2,3.12159086]
[1768404361948,3.10158317,147.27,147.17,3.12159086]
[1768404362741,3.10158317,147.27,147.17,9.23789086]
[1768404363050,0.04361501,147.23,147.17,9.23789086]
[1768404363646,0.04361501,147.23,147.17,3.12159086]
[1768404363846,0.04361501,147.23,147.14,3.12159086]
[1768404364547,3.10158317,147.24,147.14,3.12159086]
[1768404364750,0.04984706,147.2,147.14,3.12159086]
[1768404365544,0.04984706,147.2,147.1,3.12159086]
[1768404366053,8.38842443,147.23,147.1,3.12159086]
[1768404366551,0.04482852,147.16,147.1,3.12159086]
[1768404366751,14.50272443,147.23,147.1,9.24089086]
[1768404367053,14.50272443,147.23,147.11,3.12159086]
[1768404367551,9.21588317,147.23,147.11,3.12159086]
[1768404369256,9.21588317,147.23,147.16,0.04315084]
[1768404369649,6.1134,147.25,147.16,0.04315084]
[1768404369953,3.10158317,147.23,147.16,0.04315084]
[1768404370153,3.10158317,147.23,147.12,3.12159086]
[1768404370951,9.21588317,147.23,147.16,0.0446303]
[1768404371154,3.10158317,147.22,147.16,0.0446303]
[1768404371544,3.10158317,147.21,147.12,3.12159086]
[1768404371859,0.04372983,147.2,147.12,3.12159086]
[1768404372053,9.260813,147.2,147.09,235.45747002]
[1768404372360,3.10158317,147.19,147.09,235.45747002]
[1768404372751,83.32158317,147.19,147.09,235.45747002]
[1768404373156,0.05034286,147.15,147.09,235.45747002]
[1768404373959,0.05034286,147.15,147.09,241.57717002]
[1768404374154,83.32158317,147.19,147.09,241.57717002]
[1768404374360,83.32158317,147.19,147.09,235.45747002]
[1768404374562,83.32158317,147.19,147.1,6.1192]
[1768404375260,3.10158317,147.19,147.1,9.24079086]
[1768404375462,80.22,147.19,147.11,9.24049086]
[1768404375659,80.22,147.21,147.13,0.04716637]
[1768404376056,80.22,147.22,147.13,0.04716637]
[1768404376562,83.34158317,147.22,147.12,6.1184]
[1768404377167,9.21788317,147.18,147.07,9.24189086]
[1768404377364,3.10158317,147.17,147.07,3.12159086]
[1768404378459,6.1172,147.16,147.07,3.12159086]
[1768404378963,6.1172,147.16,147.02,175.479]
[1768404378964,0.04423804,147.13,147.04,3.12159086]
[1768404379161,3.14582121,147.13,147.04,3.12159086]
[1768404379562,3.10158317,147.13,147.04,3.12159086]
[1768404379766,0.04624393,147.1,147.04,3.12159086]
[1768404381372,0.04624393,147.1,147.01,3.24216922]
[1768404382079,3.10158317,147.13,147.01,3.24216922]
[1768404382268,0.04813426,147.07,147.01,3.24216922]
[1768404382676,0.04813426,147.07,146.98,83.50216922]
[1768404383274,3.03236348,147.08,146.98,83.50216922]
[1768404383579,0.04504798,147.04,146.98,83.50216922]
[1768404383975,0.04504798,147.04,146.99,3.24216922]
[1768404384868,6.1198,147.1,146.99,3.24216922]
[1768404385079,3.03236348,147.1,146.99,3.24216922]
[1768404385879,3.03236348,147.13,147.02,3.24216922]
[1768404386173,3.03236348,147.24,147.09,3.24216922]
[1768404386379,98.13816348,147.24,147.12,3.24216922]
[1768404386773,98.15206348,147.22,147.12,3.24216922]
[1768404386968,3.03236348,147.21,147.12,3.24216922]
[1768404387277,0.05044841,147.19,147.12,3.24216922]
[1768404388381,98.13816348,147.24,147.12,3.24216922]
[1768404388574,98.14106348,147.23,147.12,3.24216922]
[1768404388774,6.1155,147.2,147.12,3.24216922]
[1768404389374,6.1155,147.2,147.09,80.28]
[1768404389375,9.14786348,147.2,147.09,83.52216922]
[1768404389967,0.04971501,147.16,147.09,83.52216922]
[1768404390872,0.04971501,147.16,147.1,3.24216922]
[1768404391271,3.03236348,147.23,147.1,3.24216922]
[1768404391472,6.1146,147.22,147.12,6.16708552]
[1768404391874,6.1146,147.22,147.12,6.1185]
[1768404392182,6.1146,147.22,147.11,3.24216922]
[1768404392677,6.1146,147.22,147.15,0.05155671]
[1768404394079,9.14746348,147.21,147.11,3.24216922]
[1768404394280,0.04915409,147.2,147.11,3.24216922]
[1768404394886,9.14746348,147.21,147.11,3.24216922]
[1768404395087,3.03236348,147.21,147.11,3.24216922]
[1768404395592,0.05171614,147.17,147.12,3.24216922]
[1768404397084,9.14626348,147.24,147.13,3.29042772]
[1768404397290,3.03236348,147.27,147.13,3.29042772]
[1768404397487,3.03236348,147.27,147.13,3.24216922]
[1768404397982,80.26,147.28,147.17,3.24216922]
[1768404397983,6.1121,147.28,147.17,3.24216922]
[1768404398783,6.1121,147.28,147.21,0.05084548]
[1768404398988,3.03236348,147.3,147.21,0.05084548]
[1768404399491,3.03236348,147.3,147.18,9.35806922]
[1768404399988,3.03236348,147.29,147.18,3.24216922]
[1768404400791,0.04395663,147.25,147.18,3.24216922]
[1768404402188,0.04395663,147.25,147.2,6.1151]
[1768404402787,3.03236348,147.33,147.22,3.24216922]
[1768404403485,80.26,147.34,147.22,9.35646922]
[1768404403486,9.14276348,147.32,147.22,9.35646922]
[1768404404188,3.03236348,147.32,147.23,6.1139]
[1768404404387,3.03236348,147.32,147.22,3.24216922]
[1768404404789,3.03236348,147.32,147.26,0.04828087]
[1768404405292,9.14286348,147.32,147.22,3.24216922]
[1768404405482,0.04662289,147.3,147.22,3.24216922]
[1768404407195,3.07898637,147.3,147.17,3.24216922]
[1768404407787,3.03236348,147.3,147.17,3.24216922]
[1768404408187,0.04510246,147.25,147.2,3.24216922]
[1768404408786,3.03236348,147.3,147.2,3.24216922]
[1768404408989,3.03236348,147.3,147.21,0.04748568]
[1768404409195,3.03236348,147.3,147.22,3.24216922]
[1768404409398,6.111,147.31,147.22,3.24216922]
[1768404409692,9.14366348,147.3,147.19,3.24216922]
[1768404409882,3.03236348,147.3,147.2,3.24216922]
[1768404410694,3.03236348,147.3,147.24,0.04456345]
[1768404411497,9.14366348,147.3,147.24,0.04456345]
[1768404411697,3.25758507,147.33,147.24,0.04456345]
[1768404411897,6.1108,147.31,147.24,3.32876787]
[1768404412202,6.1108,147.31,147.24,3.28420442]
[1768404412387,3.25758507,147.33,147.24,3.28420442]
[1768404412897,3.25758507,147.33,147.21,3.28420442]
[1768404413889,3.25758507,147.33,147.26,0.04600971]
[1768404414203,6.1109,147.31,147.21,3.28420442]
[1768404414384,0.05066455,147.28,147.21,3.28420442]
[1768404414989,0.05066455,147.28,147.18,9.40000442]
[1768404415196,3.30824962,147.28,147.18,9.40000442]
[1768404415396,3.25758507,147.28,147.18,9.40000442]
[1768404415896,0.04758156,147.24,147.19,6.1156]
[1768404416294,9.36868507,147.31,147.21,9.39900442]
[1768404416598,3.25758507,147.31,147.21,9.39900442]
[1768404417093,9.36888507,147.3,147.21,3.28420442]
[1768404417594,88.80186521,147.32,147.18,3.28420442]
[1768404417595,3.25758507,147.28,147.18,3.28420442]
[1768404418190,3.25758507,147.28,147.18,9.40010442]
[1768404418894,3.25758507,147.28,147.18,3.28420442]
[1768404419701,115.5031,147.29,147.16,227.72872076]
[1768404419702,6.114,147.24,147.16,227.72872076]
[1768404419902,6.114,147.24,147.15,83.50420442]
[1768404420200,9.37068507,147.26,147.16,3.28420442]
[1768404420794,6.1124,147.27,147.18,3.28420442]
[1768404420990,3.25758507,147.29,147.18,3.28420442]
[1768404421494,9.36938507,147.29,147.2,9.39950442]
[1768404421695,9.36938507,147.29,147.21,3.28420442]
[1768404421894,3.25758507,147.29,147.21,3.28420442]
[1768404422495,3.25758507,147.29,147.15,175.3764]
[1768404422496,3.25758507,147.29,147.16,3.28420442]
[1768404422900,6.113,147.26,147.16,3.28420442]
[1768404423206,3.25758507,147.26,147.16,3.28420442]
[1768404423589,6.1141,147.23,147.16,3.28420442]
[1768404423790,6.1141,147.23,147.13,3.28420442]
[1768404423791,3.25758507,147.23,147.13,3.28420442]
[1768404423993,3.25758507,147.22,147.13,3.28420442]
[1768404424800,6.1154,147.2,147.13,3.28420442]
[1768404425605,6.1158,147.19,147.13,3.28420442]
[1768404425805,6.1158,147.19,147.1,83.50420442]
[1768404426106,3.25758507,147.22,147.11,3.28420442]
[1768404426292,3.25758507,147.21,147.11,3.28420442]
[1768404427007,6.1159,147.19,147.11,3.28420442]
[1768404428507,6.1164,147.18,147.11,3.28420442]
[1768404429606,6.1168,147.17,147.08,3.28420442]
[1768404430206,6.1175,147.15,147.08,3.28420442]
[1768404431408,6.1179,147.14,147.07,80.22]
[1768404431613,6.1179,147.14,147.05,3.28420442]
[1768404432304,6.1183,147.13,147.05,3.28420442]
[1768404433006,6.1183,147.13,147.08,0.04433251]
[1768404434312,3.25758507,147.16,147.08,0.04433251]
[1768404435105,9.37478507,147.16,147.08,0.04433251]
[1768404435512,8.54051761,147.19,147.08,3.32853693]
[1768404435710,3.25758507,147.19,147.1,3.28420442]
[1768404436211,8.54051761,147.22,147.11,3.28420442]
[1768404436616,3.25758507,147.21,147.11,3.28420442]
[1768404436804,6.1166,147.17,147.11,3.28420442]
[1768404437311,6.1166,147.17,147.03,95.2359]
[1768404437312,3.25758507,147.17,147.06,3.28420442]
[1768404437511,95.1333,147.2,147.06,3.28420442]
[1768404437512,3.25758507,147.2,147.06,3.28420442]
[1768404437816,83.51758507,147.19,147.06,3.28420442]
[1768404438518,6.1164,147.18,147.09,3.28420442]
[1768404439213,3.25758507,147.19,147.09,9.40400442]
[1768404439705,3.25758507,147.19,147.1,3.28420442]
[1768404439909,8.26879136,147.22,147.11,3.22256006]
[1768404440617,2.98585882,147.22,147.11,3.22256006]
[1768404441115,6.1142,147.23,147.12,3.20600962]
[1768404441824,6.1146,147.22,147.13,3.20600962]
[1768404442211,6.1155,147.2,147.13,3.20600962]
[1768404442410,6.1155,147.2,147.1,3.20600962]